bitfinex/quotes_ETHUSD_20220311
["timestamp","ask_amount","ask_price","bid_price","bid_amount"]
[1647021569066,1.59515368,2565.6,2565.4,0.97471]
[1647021569472,1.59515368,2565.6,2565.4,0.9787453]
[1647021570068,1.64915339,2565.6,2565.4,0.9787453]
[1647021570268,1.59515368,2565.5,2565.4,0.9787453]
[1647021570469,1.59515368,2565.5,2565.4,1.27471]
[1647021570771,1.59515368,2565.5,2565.4,1.27859885]
[1647021571473,0.05399971,2565.6,2565.4,1.27859885]
[1647021571676,0.05399971,2565.6,2565.4,1.27471]
[1647021571677,0.06990465,2565.6,2565.4,1.27471]
[1647021572817,0.01590494,2565.6,2565.4,1.27471]
[1647021573018,0.01590494,2565.6,2565.4,1.27846568]
[1647021573517,1.59524278,2565.5,2565.4,1.27846568]
[1647021573720,1.59522134,2565.5,2565.4,2.25307098]
[1647021573919,0.01590494,2565.6,2565.4,2.2493153]
[1647021574320,0.01590494,2565.6,2565.5,0.3]
[1647021574521,1.61108041,2565.6,2565.5,0.3]
[1647021576172,1.61108041,2565.6,2565.4,0.97831293]
[1647021576373,0.01590494,2565.6,2565.4,0.97471]
[1647021576575,0.01590494,2565.6,2565.4,0.97831293]
[1647021576973,0.06571931,2565.6,2565.4,0.97831293]
[1647021577674,0.06571931,2565.6,2565.4,0.97471]
[1647021577974,0.06571931,2565.6,2565.4,0.978313]
[1647021578778,0.06571931,2565.6,2565.4,0.97471]
[1647021578978,0.06571931,2565.6,2565.4,0.97837331]
[1647021580019,0.06571931,2565.6,2565.4,0.97471]
[1647021580218,0.06571931,2565.6,2565.4,0.97837331]
[1647021581225,0.06571931,2565.6,2565.4,0.97471]
[1647021581422,0.01590494,2565.6,2565.4,0.97837242]
[1647021582426,0.01590494,2565.6,2565.4,0.97471]
[1647021582622,0.01590494,2565.6,2565.4,0.97836465]
[1647021583665,0.01590494,2565.6,2565.4,0.97471]
[1647021583866,0.01590494,2565.6,2565.4,0.97836465]
[1647021584769,0.01590494,2565.6,2565.4,0.97471]
[1647021585169,0.01590494,2565.6,2565.4,0.97836465]
[1647021585973,0.05259263,2565.8,2565.5,0.3]
[1647021586173,1.59515182,2565.7,2565.5,0.97455]
[1647021586374,0.01682482,2565.9,2565.6,0.3]
[1647021586575,0.01682482,2565.9,2565.6,3.8]
[1647021586774,0.01682482,2565.9,2565.6,4.774435]
[1647021587023,0.01682482,2565.9,2565.7,0.3]
[1647021587225,0.01682482,2565.9,2565.7,1.27436]
[1647021587823,0.01682482,2565.9,2565.8,3.5]
[1647021587824,0.0155473,2565.9,2565.8,3.5]
[1647021588226,0.0155473,2565.9,2565.8,4.5]
[1647021588525,0.0155473,2565.9,2565.8,3.5]
[1647021588526,4.73e-05,2565.9,2565.8,3.5]
[1647021588726,4.73e-05,2565.9,2565.8,4.5]
[1647021588925,4.73e-05,2565.9,2565.8,3.5]
[1647021589124,4.73e-05,2565.9,2565.8,4.5]
[1647021589325,4.73e-05,2565.9,2565.8,1.0]
[1647021589526,4.73e-05,2565.9,2565.8,1.07172101]
[1647021589724,4.73e-05,2565.9,2565.8,0.07172101]
[1647021590129,4.73e-05,2565.9,2565.7,1.27436]
[1647021590327,4.73e-05,2565.9,2565.7,2.2487791]
[1647021591583,4.73e-05,2565.9,2565.8,3.5]
[1647021591983,1.5950107,2566.1,2565.9,0.87809897]
[1647021592183,1.5950107,2566.1,2565.9,1.85245617]
[1647021593883,1.69204535,2566.2,2565.9,1.85245617]
[1647021594521,1.59512611,2566.1,2565.9,1.85245617]
[1647021594919,1.69204535,2566.2,2565.9,1.85245617]
[1647021595121,1.59510824,2566.1,2565.9,1.85245617]
[1647021595518,1.69204535,2566.2,2565.9,1.85245617]
[1647021595925,1.59510782,2566.1,2565.9,1.85245617]
[1647021596723,1.69204535,2566.2,2565.9,1.85245617]
[1647021596923,1.59509346,2566.1,2565.9,1.85245617]
[1647021598377,1.59509346,2566.1,2566.0,0.3]
[1647021599175,1.59509346,2566.1,2565.9,0.9743572]
[1647021599377,1.59509346,2566.1,2565.7,0.9744062]
[1647021599575,1.59509346,2566.1,2565.6,4.4973883]
[1647021599775,1.59509346,2566.1,2565.6,7.9973883]
[1647021600176,1.59509346,2566.1,2565.6,5.7486883]
[1647021600377,1.59509346,2566.1,2565.7,0.85811335]
[1647021602219,1.59509346,2566.1,2565.7,1.15811335]
[1647021602419,1.59509346,2566.1,2565.8,0.9743857]
[1647021602717,1.59509346,2566.1,2565.6,0.3]
[1647021603018,1.59509346,2566.1,2565.5,3.75]
[1647021603222,1.59509346,2566.1,2565.8,0.0147461]
[1647021603420,1.59509346,2566.1,2565.5,1.25365661]
[1647021603617,1.59509346,2566.1,2565.5,0.00365661]
[1647021603618,0.04425644,2566.0,2565.5,0.00365661]
[1647021603820,1.59509346,2565.9,2565.5,0.00365661]
[1647021604020,1.59509346,2565.9,2565.3,1.1508]
[1647021604021,0.05319223,2565.8,2565.3,1.1508]
[1647021604217,0.04358979,2565.6,2565.3,1.1508]
[1647021604419,0.04358979,2565.6,2565.5,0.00365661]
[1647021604621,0.04407873,2565.8,2565.5,0.00365661]
[1647021604821,0.00383704,2565.4,2565.3,1.1508]
[1647021605018,0.00383704,2565.4,2565.1,1.048856]
[1647021605218,1.59941445,2565.4,2565.1,1.048856]
[1647021605619,1.59941445,2565.4,2565.2,0.10405782]
[1647021605882,0.04442375,2565.3,2565.1,1.048856]
[1647021606082,2.57057741,2565.2,2565.1,1.048856]
[1647021606378,2.57057741,2565.2,2565.1,0.95122311]
[1647021606580,2.72017741,2565.2,2564.2,2.2859]
[1647021606880,2.72017741,2565.2,2564.5,0.3898]
[1647021606881,0.0447351,2565.0,2564.5,0.3898]
[1647021607078,1.0,2564.7,2564.5,0.3898]
[1647021607277,2.29900567,2564.6,2564.5,0.3898]
[1647021607476,2.29900567,2564.6,2563.6,1.1075489]
[1647021607477,2.46220567,2564.6,2563.6,1.1075489]
[1647021607781,0.04767541,2564.4,2564.2,0.0147461]
[1647021607984,1.59557741,2564.3,2564.2,0.0147461]
[1647021608277,0.05673539,2564.0,2563.6,1.1075489]
[1647021609179,0.05673539,2564.0,2563.7,0.00390668]
[1647021609379,0.9559018,2563.8,2563.7,0.00390668]
[1647021610021,0.9559018,2563.8,2563.1,3.57004497]
[1647021610225,0.9559018,2563.8,2563.7,0.10405782]
[1647021610522,0.9559018,2563.8,2563.4,0.83366193]
[1647021610523,1.9313518,2563.8,2563.4,0.83366193]
[1647021610831,0.9559018,2563.8,2563.4,0.83366193]
[1647021611027,0.9559018,2563.8,2563.4,0.84840803]
[1647021611231,0.9559018,2563.8,2563.4,0.83366193]
[1647021611628,0.9559018,2563.8,2563.6,0.10405782]
[1647021611829,0.9559018,2563.8,2563.4,0.83366193]
[1647021612528,0.9559018,2563.8,2563.6,0.0147461]
[1647021612728,0.9559018,2563.8,2563.5,0.00389511]
[1647021613287,0.9559018,2563.8,2563.6,0.10405782]
[1647021613674,0.9559018,2563.8,2563.4,0.83366193]
[1647021613878,0.9559018,2563.8,2563.6,0.00405499]
[1647021614076,0.9559018,2563.8,2563.6,0.01880109]
[1647021614376,2.00746539,2564.0,2563.6,0.00405499]
[1647021614576,0.9559018,2563.8,2563.6,0.00405499]
[1647021614775,1.9118036,2563.8,2563.6,0.00405499]
[1647021614978,1.9118036,2563.8,2563.4,0.83366193]
[1647021615180,1.9118036,2563.8,2563.7,0.00405493]
[1647021615581,1.9118036,2563.8,2563.7,0.01880103]
[1647021615982,1.9118036,2563.8,2563.7,0.0147461]
[1647021616385,1.9118036,2563.8,2563.7,0.11880392]
[1647021630691,1.91080841,2563.8,2563.7,0.11880392]
[1647021630890,0.9559018,2563.8,2563.7,0.11880392]
[1647021631092,1.91080841,2563.8,2563.7,0.11880392]
[1647021638785,1.91080841,2563.8,2563.7,3.61880392]
[1647021639185,1.91080841,2563.8,2563.7,4.61880392]
[1647021639636,1.91080841,2563.8,2563.7,1.11880392]
[1647021639837,1.91080841,2563.8,2563.7,0.11880392]
[1647021640038,1.91080841,2563.8,2563.7,0.19236211]
[1647021641239,1.91080841,2563.8,2563.7,0.11880392]
[1647021651683,1.90951622,2563.8,2563.7,0.11880392]
[1647021651885,3.50591579,2563.8,2563.7,0.11880392]
[1647021652083,0.95490661,2563.8,2563.7,0.11880392]
[1647021652285,1.90951622,2563.8,2563.7,0.11880392]
[1647021661085,3.50580681,2563.8,2563.7,0.11880392]
[1647021663655,1.90951622,2563.8,2563.7,0.11880392]
[1647021664463,1.90951622,2563.8,2563.7,3.58151301]
[1647021664655,1.90951622,2563.8,2563.7,1.11880392]
[1647021664856,1.90951622,2563.8,2563.7,0.11880392]
[1647021665462,1.90951622,2563.8,2563.7,0.31273429]
[1647021669289,1.90951622,2563.8,2563.7,1.06677403]
[1647021669532,1.90951622,2563.8,2563.7,0.11880392]
[1647021669734,1.25404488,2564.6,2564.4,0.83276387]
[1647021669936,8.73694,2565.1,2564.4,0.83276387]
[1647021669937,0.86426898,2565.2,2564.5,8.5]
[1647021670137,0.91330602,2565.4,2564.6,0.08851756]
[1647021670335,0.91330602,2565.4,2565.2,0.97363843]
[1647021670336,0.00383704,2565.4,2565.2,0.97363843]
[1647021671237,0.00383704,2565.4,2565.2,3.22274493]
[1647021671439,0.00383704,2565.4,2565.2,4.19729493]
[1647021671639,0.75632372,2565.9,2565.2,3.89729493]
[1647021671841,0.75632372,2565.9,2565.3,0.10405782]
[1647021672039,0.75632372,2565.9,2565.2,5.20093584]
[1647021672439,0.71466898,2565.8,2565.2,5.20093584]
[1647021672640,0.71466898,2565.8,2565.2,4.89729493]
[1647021672939,0.75632372,2565.9,2565.4,0.97824062]
[1647021673138,0.04165474,2565.9,2565.4,0.97824062]
[1647021673391,0.04165474,2565.9,2565.6,0.11880392]
[1647021673587,0.04165474,2565.9,2565.4,0.00364062]
[1647021673588,0.13450125,2565.5,2565.4,0.00364062]
[1647021673788,0.13450125,2565.5,2565.3,3.2492]
[1647021673789,0.13450125,2565.5,2565.3,2.2492]
[1647021673986,0.13450125,2565.5,2565.4,0.00364062]
[1647021674986,0.13450125,2565.5,2565.3,3.2492]
[1647021675187,0.13450125,2565.5,2565.3,3.25284013]
[1647021675393,0.13450125,2565.5,2565.3,5.75284013]
[1647021675592,0.13450125,2565.5,2565.3,6.75284013]
[1647021676193,0.13450125,2565.5,2565.3,3.2492]
[1647021676394,0.13450125,2565.5,2565.3,2.2528402]
[1647021677335,0.13450125,2565.5,2565.3,2.2492]
[1647021677533,0.13450125,2565.5,2565.3,2.2528402]
[1647021678134,0.13450125,2565.5,2565.3,5.7528402]
[1647021678336,0.13450125,2565.5,2565.4,3.5]
[1647021678735,0.13450125,2565.5,2565.4,4.5]
[1647021678936,0.13450125,2565.5,2565.4,3.5]
[1647021679135,0.13450125,2565.5,2565.4,4.5]
[1647021679536,0.13450125,2565.5,2565.3,2.25284033]
[1647021679738,0.13450125,2565.5,2565.3,2.2492]
[1647021680237,0.13450125,2565.5,2565.4,3.5]
[1647021680437,0.13450125,2565.5,2565.3,2.25284026]
[1647021680889,0.13450125,2565.5,2565.4,3.5]
[1647021681489,0.13450125,2565.5,2565.4,4.87796518]
[1647021681690,0.13450125,2565.5,2565.4,4.9948]
[1647021682291,0.13450125,2565.5,2565.4,8.24764685]
[1647021683391,0.13450125,2565.5,2565.4,9.74764685]
[1647021685640,0.01593081,2566.3,2565.4,9.74764685]
[1647021685838,5.7462,2566.7,2566.0,2.03603262]
[1647021686039,1.73619532,2567.0,2566.1,3.5]
[1647021686040,0.01593081,2566.3,2566.1,3.5]
[1647021686243,0.01593081,2566.3,2566.1,3.8]
[1647021686440,0.01593081,2566.3,2566.1,4.8]
[1647021687039,0.04722634,2567.0,2566.3,0.97411]
[1647021687239,0.01593192,2566.7,2566.4,3.5]
[1647021687441,0.01593192,2566.7,2566.3,0.6]
[1647021687839,0.01593192,2566.7,2566.3,0.3]
[1647021688297,1.21773772,2567.4,2566.5,0.9741]
[1647021688487,0.00398345,2566.6,2566.4,6.9003]
[1647021688685,0.00398345,2566.6,2566.4,3.4003]
[1647021689086,0.00398345,2566.6,2566.4,4.4003]
[1647021689285,0.05113315,2567.3,2566.4,4.4003]
[1647021689487,0.05113315,2567.3,2566.6,0.97414]
[1647021689686,0.01593141,2567.0,2566.6,0.97414]
[1647021689886,1.59487705,2566.9,2566.6,0.97414]
[1647021690088,0.01593141,2567.0,2566.6,0.97414]
[1647021690286,0.01593141,2567.0,2566.7,0.3]
[1647021690688,0.01593141,2567.0,2566.7,1.27413]
[1647021690890,0.00398332,2566.9,2566.7,1.27413]
[1647021691791,1.59482539,2567.2,2566.7,1.27413]
[1647021692042,0.00398332,2566.9,2566.7,1.27413]
[1647021692241,0.00398332,2566.9,2566.7,2.2481582]
[1647021692641,0.00398332,2566.9,2566.7,2.5481582]
[1647021693041,1.59482539,2567.2,2566.7,1.27413]
[1647021693242,0.00398332,2566.9,2566.7,1.27413]
[1647021693643,0.00398332,2566.9,2566.6,1.54711392]
[1647021693843,0.00398332,2566.9,2566.6,0.54711392]
[1647021694244,1.59482539,2567.0,2566.4,2.14326]
[1647021694444,0.05244487,2566.9,2566.4,2.14326]
[1647021694843,0.00398334,2566.9,2566.4,2.14326]
[1647021695243,1.59899792,2566.9,2566.4,2.14326]
[1647021695446,0.05156392,2566.9,2566.4,2.14326]
[1647021695648,0.00398339,2566.8,2566.4,2.14326]
[1647021696695,1.59499776,2566.8,2566.4,2.14326]
[1647021696891,0.00398341,2566.7,2566.4,2.14326]
[1647021697891,1.5949975,2566.8,2566.4,2.14326]
[1647021698092,0.00398343,2566.7,2566.4,2.14326]
[1647021698792,0.00398343,2566.7,2566.4,2.14201041]
[1647021698992,1.5949975,2566.8,2566.4,2.14201041]
[1647021699197,0.00398343,2566.7,2566.4,2.14201041]
[1647021699396,0.00398343,2566.7,2566.4,1.94731041]
[1647021699638,0.04716473,2566.7,2566.0,1.94894]
[1647021699838,1.5949975,2566.6,2566.0,1.94894]
[1647021700138,0.04322014,2566.5,2566.0,1.94894]
[1647021700537,1.02172365,2566.5,2566.0,1.94894]
[1647021700740,1.02172365,2566.5,2566.0,2.24894]
[1647021700741,1.5951865,2566.4,2566.0,2.24894]
[1647021701142,0.05140888,2566.3,2566.0,2.24894]
[1647021701542,0.05010042,2566.6,2566.0,2.24894]
[1647021701747,0.00398349,2566.4,2566.0,2.24894]
[1647021701943,0.05405713,2566.4,2566.0,2.24894]
[1647021702344,0.00398349,2566.4,2566.0,2.24894]
[1647021702545,0.05068317,2566.4,2566.0,2.24894]
[1647021702745,0.04254656,2566.6,2566.0,2.24894]
[1647021702944,0.05596249,2566.4,2566.0,2.24894]
[1647021703145,0.00398349,2566.4,2566.0,2.24894]
[1647021703389,0.00398349,2566.4,2566.0,1.94894]
[1647021703590,0.00398349,2566.4,2566.0,2.24894]
[1647021703790,1.64748309,2566.4,2566.0,2.24894]
[1647021703992,0.05228762,2566.4,2566.0,2.24894]
[1647021704193,0.00398349,2566.4,2566.0,2.24894]
[1647021704592,1.65219837,2566.4,2566.0,2.24894]
[1647021704893,0.05696388,2566.4,2566.0,2.24894]
[1647021705091,0.03014065,2566.5,2566.0,2.24894]
[1647021705294,1.59916416,2566.4,2566.0,2.24894]
[1647021705494,1.64397585,2566.4,2566.0,2.24894]
[1647021705692,0.00398349,2566.4,2566.0,2.24894]
[1647021706292,1.59518707,2566.4,2566.0,2.24894]
[1647021706491,1.59917056,2566.4,2566.0,2.24894]
[1647021707343,1.59518707,2566.4,2566.0,2.24894]
[1647021707539,1.59518707,2566.4,2566.0,2.54894]
[1647021707739,1.59917056,2566.4,2566.1,0.97438]
[1647021708743,1.59518707,2566.4,2566.1,0.97438]
[1647021708943,1.59891112,2566.4,2566.1,0.97438]
[1647021709744,1.59518707,2566.4,2566.1,0.97438]
[1647021710146,1.59891112,2566.4,2566.1,0.97438]
[1647021710995,1.59518707,2566.4,2566.1,0.97438]
[1647021711196,1.59891112,2566.4,2566.1,0.97438]
[1647021712295,1.59518707,2566.4,2566.1,0.97438]
[1647021712497,1.59916633,2566.4,2566.1,0.97438]
[1647021713200,1.59916633,2566.4,2565.7,3.1910921]
[1647021713399,1.64796273,2566.4,2565.7,3.1910921]
[1647021713598,1.59518707,2566.3,2565.7,3.1910921]
[1647021714747,1.59518707,2566.3,2565.8,0.07321341]
[1647021714940,1.59518707,2566.2,2565.8,0.07321341]
[1647021715141,0.02903318,2566.4,2565.8,0.07321341]
[1647021715142,1.59518707,2566.1,2565.8,0.07321341]
[1647021715341,1.59518707,2566.0,2565.8,0.07321341]
[1647021715541,0.02903318,2566.4,2565.8,0.07321341]
[1647021715741,1.59519151,2566.3,2565.8,0.07321341]
[1647021715947,1.59519151,2566.3,2565.8,1.04759341]
[1647021716345,1.59519151,2566.3,2565.8,2.02196481]
[1647021717045,1.59519151,2566.3,2565.8,1.04759341]
[1647021718046,1.59519151,2566.3,2565.8,4.47438]
[1647021718299,1.59519151,2566.3,2566.0,1.06201811]
[1647021718489,1.59519151,2566.3,2566.0,1.66201811]
[1647021718687,1.59519151,2566.3,2566.1,1.94859]
[1647021720189,1.59519151,2566.3,2566.1,2.9228914]
[1647021720393,1.59519151,2566.3,2566.2,0.08707834]
[1647021721796,1.59519151,2566.3,2566.1,1.94859]
[1647021723864,1.59519151,2566.2,2566.1,1.94859]
[1647021724565,0.00389432,2566.4,2566.1,1.94859]
[1647021725466,2.30986049,2566.6,2566.1,1.94859]
[1647021725669,0.00389437,2566.4,2566.2,3.5]
[1647021725903,0.01557518,2566.8,2566.7,0.98280676]
[1647021726100,1.61033059,2566.8,2566.7,4.57323987]
[1647021726298,1.61033059,2566.8,2566.7,1.37323987]
[1647021726497,1.61033059,2566.8,2566.7,2.37323987]
[1647021726705,1.59475541,2566.8,2566.7,4.23068806]
[1647021726897,1.59475541,2566.8,2566.7,2.25673676]
[1647021727098,0.95293749,2567.6,2566.7,3.25673676]
[1647021727099,1.59475541,2567.6,2566.7,3.25673676]
[1647021727299,1.59475541,2567.5,2566.8,5.44789]
[1647021727503,1.59475541,2567.4,2566.8,5.44789]
[1647021727705,1.59475541,2567.3,2567.0,0.97386]
[1647021728001,1.59475541,2567.2,2567.1,3.5]
[1647021728200,1.6363357,2567.9,2567.1,3.5]
[1647021728399,1.6363357,2567.9,2567.1,4.5]
[1647021728400,1.59475541,2567.8,2567.1,4.5]
[1647021728602,1.59475541,2567.8,2567.1,3.5]
[1647021728803,1.59475541,2567.8,2567.5,0.89220099]
[1647021729002,1.70067504,2567.4,2567.1,4.4738262]
[1647021729203,0.97616292,2568.3,2567.3,7.47384]
[1647021729204,0.99812101,2568.3,2567.3,7.47384]
[1647021729410,0.99812101,2568.3,2567.2,3.8]
[1647021729411,1.58239549,2568.2,2567.4,5.52697421]
[1647021729644,1.58239549,2568.2,2567.5,0.07971421]
[1647021730047,1.58239549,2568.2,2567.5,1.08504163]
[1647021730246,1.58239549,2568.1,2567.6,0.9736159]
[1647021730444,0.00289925,2568.0,2567.8,0.97367]
[1647021730852,0.00289925,2568.0,2567.7,0.3]
[1647021731049,0.00289925,2568.0,2567.6,1.2736159]
[1647021731250,1.58529474,2568.0,2567.5,2.1785]
[1647021731454,1.58239549,2567.9,2567.5,1.1785]
[1647021731650,1.58239549,2567.8,2567.4,7.04726]
[1647021731850,1.58239549,2567.8,2567.7,1.06944448]
[1647021732050,1.58239549,2567.8,2567.4,7.04726]
[1647021732251,1.58239549,2567.8,2567.4,8.02097]
[1647021732453,1.58239549,2567.8,2567.5,1.947402]
[1647021732851,1.58529475,2567.7,2567.5,1.273702]
[1647021733050,0.00289926,2567.7,2567.6,4.37886817]
[1647021733303,0.00289926,2567.7,2567.6,5.67886817]
[1647021733689,1.57838318,2568.0,2567.6,5.67886817]
[1647021733891,1.57838318,2567.9,2567.7,1.9473353]
[1647021734090,1.58262434,2567.8,2567.7,1.9473353]
[1647021734289,1.58262434,2567.8,2567.7,2.2473353]
[1647021734490,1.58262434,2567.8,2567.7,5.7473353]
[1647021734893,1.58262434,2567.8,2567.7,2.2473353]
[1647021735090,1.57838318,2567.8,2567.7,5.7473353]
[1647021735692,1.57838318,2567.8,2567.7,6.69891343]
[1647021735895,1.57838318,2567.8,2567.7,5.72524343]
[1647021736096,0.02656087,2567.9,2567.7,5.72524343]
[1647021736298,0.02231976,2567.9,2567.7,7.69882343]
[1647021736497,0.02656087,2567.9,2567.7,7.69882343]
[1647021736698,0.02656087,2567.9,2567.7,4.19882343]
[1647021736898,0.02656087,2567.9,2567.8,0.08535992]
[1647021737142,0.02656087,2567.9,2567.8,0.38535992]
[1647021737542,0.02231976,2567.9,2567.8,0.38535992]
[1647021738843,0.02231976,2567.9,2567.8,0.08535992]
[1647021739845,0.04819694,2567.9,2567.8,0.08535992]
[1647021740245,0.04819694,2567.9,2567.7,0.3]
[1647021740458,0.04819694,2567.9,2567.6,0.3]
[1647021740650,1.57545021,2567.8,2567.5,2.41573844]
[1647021740893,1.57545021,2567.8,2567.5,0.08623844]
[1647021741294,0.00394655,2567.8,2567.5,0.08623844]
[1647021741496,0.00394655,2567.8,2567.3,0.07879576]
[1647021741694,1.57518816,2567.8,2567.3,0.07879576]
[1647021741894,0.00214349,2567.9,2567.3,0.07879576]
[1647021742694,0.00469209,2567.9,2567.3,0.07879576]
[1647021742999,1.57518816,2567.8,2567.3,0.07879576]
[1647021743293,0.97866209,2567.9,2567.3,0.07879576]
[1647021743494,0.97611349,2567.9,2567.3,0.07879576]
[1647021743995,1.57475469,2567.8,2567.3,0.07879576]
[1647021744196,0.02581423,2567.8,2567.3,0.07879576]
[1647021745241,1.57482754,2567.7,2567.3,0.07879576]
[1647021746645,1.57482754,2567.7,2567.1,0.27978569]
[1647021747047,1.57482754,2567.7,2567.1,0.08585532]
[1647021747248,1.57482754,2567.7,2567.0,0.19393037]
[1647021747447,1.57482754,2567.7,2566.9,1.2386]
[1647021747646,0.04185184,2567.6,2566.9,1.2386]
[1647021748049,1.57529586,2567.5,2566.9,1.2386]
[1647021748498,1.87529586,2567.5,2566.9,1.2386]
[1647021748699,1.57529586,2567.4,2566.9,1.2386]
[1647021748900,0.46278369,2566.8,2566.7,0.08975131]
[1647021749900,0.46278369,2566.8,2566.5,0.3]
[1647021750198,0.46278369,2566.8,2566.4,0.08803974]
[1647021751013,0.46278369,2566.8,2566.3,0.10090764]
[1647021751202,0.46278369,2566.8,2566.4,0.19393037]
[1647021751602,0.46278369,2566.8,2566.3,1.10090764]
[1647021751802,0.46278369,2566.8,2566.3,0.10090764]
[1647021752843,0.76278369,2566.8,2566.2,1.137]
[1647021753044,1.55407212,2566.7,2566.2,1.137]
[1647021753343,1.55407212,2566.7,2565.9,0.08954852]
[1647021753344,5.05407212,2566.7,2565.9,0.08954852]
[1647021753554,1.60445819,2566.6,2566.1,0.00377578]
[1647021753745,2.47446,2566.4,2566.1,0.00377578]
[1647021753944,3.5,2566.3,2566.1,0.00377578]
[1647021754346,3.5,2566.3,2565.7,7.913]
[1647021754547,3.8,2566.3,2566.1,0.00385739]
[1647021754750,4.51800932,2566.2,2566.1,0.00385739]
[1647021754946,4.47608134,2566.2,2566.1,0.00385739]
[1647021755144,4.77608134,2566.2,2566.1,0.00385739]
[1647021755345,8.27608134,2566.2,2566.1,0.00385739]
[1647021755548,1.94924,2566.1,2565.5,1.1872]
[1647021755810,1.94924,2566.1,2566.0,0.00385744]
[1647021755811,2.24924,2566.1,2566.0,0.00385744]
[1647021756004,1.27462,2566.1,2566.0,0.00385744]
[1647021756605,4.77462,2566.1,2566.0,0.00385744]
[1647021756805,0.97466,2565.8,2565.4,0.07978583]
[1647021757205,0.3,2565.9,2565.4,0.07978583]
[1647021757603,0.3,2566.1,2565.4,0.07978583]
[1647021758005,0.3,2566.1,2565.4,0.34747919]
[1647021758206,6.0491085,2566.3,2565.5,0.08342785]
[1647021758604,5.7491085,2566.3,2565.5,0.08342785]
[1647021759205,0.9745,2566.2,2565.5,0.07978583]
[1647021759404,0.9745,2566.2,2565.8,0.00364192]
[1647021760242,1.5,2566.4,2565.5,0.07978583]
[1647021760444,1.5,2566.4,2565.7,0.97435]
[1647021760644,1.5,2566.4,2565.9,0.00364188]
[1647021760847,1.5,2566.4,2565.9,0.152868]
[1647021761048,1.5,2566.4,2566.0,0.07978583]
[1647021761246,1.5,2566.4,2566.0,1.08112353]
[1647021761451,0.0001,2566.4,2566.1,16.3942]
[1647021761649,0.0001,2566.4,2566.2,0.08562512]
[1647021761848,0.0001,2566.4,2566.2,0.27955549]
[1647021762350,0.0001,2566.4,2566.3,0.2737162]
[1647021762545,0.0001,2566.4,2566.3,4.82254696]
[1647021762945,0.0001,2566.4,2566.3,5.82254696]
[1647021764594,0.0001,2566.4,2566.3,5.62861659]
[1647021764795,0.0001,2566.4,2566.3,2.12861659]
[1647021765195,0.0001,2566.4,2566.3,1.12861659]
[1647021766199,0.0001,2566.4,2566.3,4.62861659]
[1647021766400,0.0001,2566.4,2566.3,1.12861659]
[1647021767043,0.0001,2566.4,2566.3,4.62861659]
[1647021767242,0.0001,2566.4,2566.3,5.62861659]
[1647021767444,0.0001,2566.4,2566.3,5.92861659]
[1647021767643,0.0001,2566.4,2566.3,5.62861659]
[1647021767845,0.0001,2566.4,2566.3,5.62859322]
[1647021768046,0.46278369,2566.8,2566.3,5.55383246]
[1647021768244,0.46278369,2566.8,2566.4,0.1561219]
[1647021768445,0.46278369,2566.8,2566.5,0.97398]
[1647021769446,0.46278369,2566.8,2566.6,0.07298385]
[1647021772201,0.46278369,2566.8,2566.6,1.04699385]
[1647021772499,0.46278369,2566.8,2566.6,0.07298385]
[1647021773299,0.46278369,2566.8,2566.3,2.94807]
[1647021773500,0.46278369,2566.8,2566.4,0.16666991]
[1647021773699,0.46278369,2566.8,2566.4,3.58690855]
[1647021773900,0.46278369,2566.8,2566.5,0.07747398]
[1647021774099,0.46278369,2566.8,2566.5,0.1572353]
[1647021774303,0.46278369,2566.8,2566.5,0.07747398]
[1647021774546,0.04394926,2567.5,2567.2,0.90358471]
[1647021774744,0.04394926,2567.5,2567.3,3.5]
[1647021775245,6.99918295,2568.3,2567.4,0.07169095]
[1647021775246,0.01465867,2567.8,2567.4,0.07169095]
[1647021776046,0.97362,2568.2,2568.0,1.01696178]
[1647021776247,1.5681472,2568.1,2567.4,1.25449095]
[1647021776448,1.55348366,2568.0,2567.6,0.97362]
[1647021777050,1.55348366,2568.0,2567.5,1.0]
[1647021777250,1.55348366,2567.9,2567.4,1.25449095]
[1647021777452,1.55715001,2567.9,2567.4,0.07169095]
[1647021777651,1.55348366,2567.8,2567.4,0.07169095]
[1647021777852,1.55348366,2567.7,2567.4,0.07169095]
[1647021778049,1.55348366,2567.6,2567.4,0.07169095]
[1647021778312,0.05105487,2568.1,2567.4,0.07169095]
[1647021778501,0.00255864,2567.9,2567.6,1.00836906]
[1647021779504,1.5535184,2568.0,2567.6,1.00836906]
[1647021779901,0.00366601,2567.9,2567.6,1.00836906]
[1647021780302,0.00366601,2567.9,2567.5,0.97365]
[1647021780303,0.97733601,2567.9,2567.5,0.97365]
[1647021780503,1.95120601,2567.9,2567.4,1.07169095]
[1647021780704,1.95120601,2567.9,2567.5,0.0779924]
[1647021780705,1.5535184,2567.8,2567.5,0.0779924]
[1647021780904,1.94754,2567.9,2567.2,0.07050664]
[1647021781106,1.95120596,2567.9,2567.2,0.07050664]
[1647021781305,0.97379,2567.5,2567.3,1.13985046]
[1647021782345,0.97379,2567.5,2567.2,0.07050664]
[1647021782945,0.97379,2567.5,2567.0,0.07637165]
[1647021783145,0.97392,2567.3,2567.0,0.07637165]
[1647021783345,0.97379,2567.5,2567.1,0.88989865]
[1647021783550,0.97751279,2567.9,2567.6,0.8069012]
[1647021783551,0.01831432,2567.9,2567.6,0.8069012]
[1647021783748,0.01831432,2567.9,2567.5,0.97365]
[1647021784349,0.00236158,2568.3,2567.5,0.97365]
[1647021784550,0.9737,2567.8,2567.4,3.5]
[1647021787293,0.00366369,2567.9,2567.5,1.07383116]
[1647021787791,0.00366369,2567.9,2567.5,0.07383116]
[1647021787988,0.97372,2568.3,2567.5,1.04596709]
[1647021788188,0.97371,2567.8,2567.5,1.04596709]
[1647021789188,1.27371,2567.8,2567.5,0.07383116]
[1647021789391,0.97389,2567.5,2567.2,0.08972322]
[1647021789630,0.3507437,2567.8,2566.9,0.28406551]
[1647021789836,0.0507437,2567.8,2566.9,0.28406551]
[1647021790031,0.97401,2567.7,2566.9,0.08936551]
[1647021790232,0.0507437,2567.8,2566.8,0.24097836]
[1647021790233,1.948,2567.3,2566.8,0.04627836]
[1647021790438,0.3,2567.4,2566.8,0.04627836]
[1647021790637,0.05025609,2567.3,2566.8,0.04627836]
[1647021791041,0.97413,2567.0,2566.8,0.04627836]
[1647021794388,0.87671701,2567.0,2566.8,0.04627836]
[1647021796592,1.17671701,2567.0,2566.8,0.04627836]
[1647021798333,0.87671701,2567.0,2566.8,0.04627836]
[1647021800786,0.87671701,2567.0,2566.9,0.07974803]
[1647021801583,0.87671701,2567.0,2566.8,0.04627836]
[1647021801784,0.87671701,2567.0,2566.9,0.0797501]
[1647021802889,0.87671701,2567.0,2566.6,0.79986337]